[Event "Titled Tuesday Blitz May 16 Late 2023"]
[White "Mekhane, Adam"]
[Black "Caruana, Fabiano"]
[WhiteFideId "36050601"]
[BlackFideId "2020009"]
[WhiteElo "2177"]
[BlackElo "2837"]
[Result "0-1"]
[Round "01"]
[TimeControl "180+2"]
[Date "2023.05.16"]
[WhiteClock "0:00:00"]
[BlackClock "0:00:43"]

1. e4 {[%clk 0:02:59]}  e5 {[%clk 0:02:59]} 2. Nf3 {[%clk 0:02:59]}  Nc6 {[%clk 0:02:59]} 3. Bb5 {[%clk 0:03:00]}  a6 {[%clk 0:02:59]} 4. Ba4 {[%clk 0:03:00]}  Nf6 {[%clk 0:02:59]} 5. O-O {[%clk 0:02:59]}  b5 {[%clk 0:02:59]} 6. Bb3 {[%clk 0:02:59]}  Bc5 {[%clk 0:02:59]} 7. c3 {[%clk 0:02:56]}  d6 {[%clk 0:02:59]} 8. a4 {[%clk 0:02:53]}  Rb8 {[%clk 0:02:58]} 9. d4 {[%clk 0:02:54]}  Bb6 {[%clk 0:02:58]} 10. a5 {[%clk 0:02:54]}  Ba7 {[%clk 0:02:57]} 11. h3 {[%clk 0:02:49]}  O-O {[%clk 0:02:57]} 12. Be3 {[%clk 0:02:48]}  Ra8 {[%clk 0:02:51]} 13. Nbd2 {[%clk 0:02:43]}  h6 {[%clk 0:02:50]} 14. Qe2 {[%clk 0:02:18]}  Re8 {[%clk 0:02:49]} 15. Rfd1 {[%clk 0:02:11]}  Bd7 {[%clk 0:02:48]} 16. d5 {[%clk 0:02:04]}  Ne7 {[%clk 0:02:46]} 17. Nf1 {[%clk 0:02:01]}  Ng6 {[%clk 0:02:43]} 18. Ng3 {[%clk 0:01:59]}  Nf4 {[%clk 0:02:39]} 19. Qd2 {[%clk 0:01:49]}  g5 {[%clk 0:02:38]} 20. Bxa7 {[%clk 0:01:47]}  Rxa7 {[%clk 0:02:37]} 21. c4 {[%clk 0:01:48]}  Qe7 {[%clk 0:02:29]} 22. Rac1 {[%clk 0:01:46]}  Rb8 {[%clk 0:02:26]} 23. Qc3 {[%clk 0:01:39]}  Nxe4 {[%clk 0:02:17]} 24. Qe3 {[%clk 0:01:26]}  Nc5 {[%clk 0:02:14]} 25. Ba2 {[%clk 0:01:03]}  bxc4 {[%clk 0:02:11]} 26. Bxc4 {[%clk 0:01:03]}  Rxb2 {[%clk 0:02:09]} 27. Bf1 {[%clk 0:01:03]}  f6 {[%clk 0:01:42]} 28. Ne4 {[%clk 0:01:03]}  Rb3 {[%clk 0:01:36]} 29. Rc3 {[%clk 0:00:41]}  Rxc3 {[%clk 0:01:35]} 30. Nxc3 {[%clk 0:00:42]}  Rb7 {[%clk 0:01:34]} 31. Ne4 {[%clk 0:00:41]}  Rb3 {[%clk 0:01:33]} 32. Qe1 {[%clk 0:00:29]}  Ncd3 {[%clk 0:01:16]} 33. Qe3 {[%clk 0:00:22]}  Bb5 {[%clk 0:01:10]} 34. Ned2 {[%clk 0:00:18]}  Rb4 {[%clk 0:01:01]} 35. g3 {[%clk 0:00:16]}  Nxd5 {[%clk 0:00:59]} 36. Qa7 {[%clk 0:00:11]}  Nc3 {[%clk 0:00:53]} 37. Qa8+ {[%clk 0:00:07]}  Kg7 {[%clk 0:00:52]} 38. Ra1 {[%clk 0:00:06]}  e4 {[%clk 0:00:49]} 39. Ne1 {[%clk 0:00:03]}  Nxf2 {[%clk 0:00:44]} 40. Kxf2 {[%clk 0:00:02]}  e3+ {[%clk 0:00:44]} 41. Kg2 {[%clk 0:00:02]}  exd2 {[%clk 0:00:44]} 42. Nf3 {[%clk 0:00:00]}  Rb2 {[%clk 0:00:43]} 0-1


[Site "https://www.chess.com"]

[Event "Titled Tuesday Blitz May 16 Late 2023"]
[White "Bluebaum, Matthias"]
[Black "Becerra, Juan David"]
[WhiteFideId "24651516"]
[BlackFideId "4404998"]
[WhiteElo "2639"]
[BlackElo "2304"]
[Result "1-0"]
[Round "01"]
[TimeControl "180+2"]
[Date "2023.05.16"]
[WhiteClock "0:02:15"]
[BlackClock "0:00:00"]

1. d4 {[%clk 0:03:00]}  Nf6 {[%clk 0:02:57]} 2. c4 {[%clk 0:03:01]}  c5 {[%clk 0:02:57]} 3. d5 {[%clk 0:03:01]}  e6 {[%clk 0:02:57]} 4. Nc3 {[%clk 0:03:01]}  exd5 {[%clk 0:02:56]} 5. cxd5 {[%clk 0:03:02]}  d6 {[%clk 0:02:56]} 6. Nf3 {[%clk 0:03:03]}  a6 {[%clk 0:02:56]} 7. a4 {[%clk 0:03:03]}  g6 {[%clk 0:02:56]} 8. Bg5 {[%clk 0:03:03]}  Bg7 {[%clk 0:02:53]} 9. Nd2 {[%clk 0:03:03]}  Nbd7 {[%clk 0:02:40]} 10. e4 {[%clk 0:03:03]}  h6 {[%clk 0:02:40]} 11. Bh4 {[%clk 0:03:03]}  O-O {[%clk 0:02:35]} 12. Be2 {[%clk 0:03:03]}  Qc7 {[%clk 0:02:27]} 13. O-O {[%clk 0:03:03]}  Re8 {[%clk 0:02:17]} 14. f4 {[%clk 0:03:03]}  c4 {[%clk 0:02:14]} 15. Bxc4 {[%clk 0:03:03]}  Nxe4 {[%clk 0:02:11]} 16. Ncxe4 {[%clk 0:02:59]}  Rxe4 {[%clk 0:02:07]} 17. Nxe4 {[%clk 0:02:55]}  Qxc4 {[%clk 0:02:08]} 18. Re1 {[%clk 0:02:46]}  Bxb2 {[%clk 0:02:00]} 19. Rb1 {[%clk 0:02:44]}  Bg7 {[%clk 0:01:55]} 20. Kh1 {[%clk 0:02:41]}  Bf8 {[%clk 0:01:46]} 21. a5 {[%clk 0:02:35]}  Qc7 {[%clk 0:01:32]} 22. Qd2 {[%clk 0:02:30]}  f5 {[%clk 0:00:46]} 23. Rbc1 {[%clk 0:02:23]}  Qb8 {[%clk 0:00:40]} 24. Nf6+ {[%clk 0:02:18]}  Nxf6 {[%clk 0:00:39]} 25. Bxf6 {[%clk 0:02:18]}  Bd7 {[%clk 0:00:40]} 26. Bb2 {[%clk 0:02:14]}  Qd8 {[%clk 0:00:20]} 27. Qd4 {[%clk 0:02:14]}  Kf7 {[%clk 0:00:00]} 28. Qh8 {[%clk 0:02:15]} 1-0


[Site "https://www.chess.com"]

[Event "Titled Tuesday Blitz May 16 Late 2023"]
[White "Hakobyan, Aram"]
[Black "Stork, Oliver"]
[WhiteFideId "13306677"]
[BlackFideId "12955728"]
[WhiteElo "2584"]
[BlackElo "2239"]
[Result "1-0"]
[Round "01"]
[TimeControl "180+2"]
[Date "2023.05.16"]
[WhiteClock "0:00:33"]
[BlackClock "0:01:10"]

1. d4 {[%clk 0:03:00]}  Nf6 {[%clk 0:02:58]} 2. c4 {[%clk 0:03:01]}  e6 {[%clk 0:02:58]} 3. Nc3 {[%clk 0:03:01]}  Bb4 {[%clk 0:02:55]} 4. e3 {[%clk 0:02:57]}  O-O {[%clk 0:02:52]} 5. a3 {[%clk 0:02:54]}  Bxc3+ {[%clk 0:02:52]} 6. bxc3 {[%clk 0:02:55]}  Nc6 {[%clk 0:02:53]} 7. Ne2 {[%clk 0:02:55]}  b6 {[%clk 0:02:51]} 8. Ng3 {[%clk 0:02:55]}  Na5 {[%clk 0:02:50]} 9. Bd3 {[%clk 0:02:55]}  Ba6 {[%clk 0:02:46]} 10. Qe2 {[%clk 0:02:53]}  c5 {[%clk 0:02:45]} 11. e4 {[%clk 0:02:41]}  Ne8 {[%clk 0:02:44]} 12. d5 {[%clk 0:02:36]}  f5 {[%clk 0:02:42]} 13. exf5 {[%clk 0:02:33]}  exd5 {[%clk 0:02:41]} 14. cxd5 {[%clk 0:02:34]}  Bxd3 {[%clk 0:02:40]} 15. Qxd3 {[%clk 0:02:35]}  c4 {[%clk 0:02:41]} 16. Qc2 {[%clk 0:02:21]}  Nb3 {[%clk 0:02:11]} 17. Rb1 {[%clk 0:02:15]}  Nxc1 {[%clk 0:02:09]} 18. Rxc1 {[%clk 0:02:15]}  Qe7+ {[%clk 0:02:09]} 19. Qe2 {[%clk 0:01:46]}  Qxe2+ {[%clk 0:01:59]} 20. Kxe2 {[%clk 0:01:47]}  Nd6 {[%clk 0:01:59]} 21. Rhd1 {[%clk 0:01:45]}  Rae8+ {[%clk 0:01:56]} 22. Kf1 {[%clk 0:01:40]}  Nxf5 {[%clk 0:01:57]} 23. Nxf5 {[%clk 0:01:38]}  Rxf5 {[%clk 0:01:57]} 24. Rd4 {[%clk 0:01:32]}  Rc8 {[%clk 0:01:56]} 25. a4 {[%clk 0:01:29]}  d6 {[%clk 0:01:55]} 26. g4 {[%clk 0:01:00]}  Re5 {[%clk 0:01:50]} 27. Re1 {[%clk 0:00:54]}  Rxe1+ {[%clk 0:01:41]} 28. Kxe1 {[%clk 0:00:55]}  a6 {[%clk 0:01:41]} 29. Re4 {[%clk 0:00:52]}  Kf7 {[%clk 0:01:40]} 30. Re6 {[%clk 0:00:49]}  Rd8 {[%clk 0:01:27]} 31. f4 {[%clk 0:00:49]}  b5 {[%clk 0:01:27]} 32. axb5 {[%clk 0:00:49]}  axb5 {[%clk 0:01:28]} 33. Kd2 {[%clk 0:00:49]}  Ra8 {[%clk 0:01:25]} 34. Rxd6 {[%clk 0:00:49]}  Ra2+ {[%clk 0:01:25]} 35. Ke3 {[%clk 0:00:50]}  Rxh2 {[%clk 0:01:26]} 36. Rd7+ {[%clk 0:00:50]}  Kf6 {[%clk 0:01:25]} 37. g5+ {[%clk 0:00:49]}  Kg6 {[%clk 0:01:23]} 38. d6 {[%clk 0:00:49]}  Rh3+ {[%clk 0:01:22]} 39. Kd4 {[%clk 0:00:49]}  Rd3+ {[%clk 0:01:22]} 40. Kc5 {[%clk 0:00:43]}  Rxc3 {[%clk 0:01:23]} 41. Kxb5 {[%clk 0:00:43]}  Rc1 {[%clk 0:01:19]} 42. Rd8 {[%clk 0:00:35]}  c3 {[%clk 0:01:19]} 43. Kc4 {[%clk 0:00:36]}  c2 {[%clk 0:01:19]} 44. Kc3 {[%clk 0:00:37]}  Rd1 {[%clk 0:01:19]} 45. Kxc2 {[%clk 0:00:37]}  Rd5 {[%clk 0:01:20]} 46. Kc3 {[%clk 0:00:33]}  Kf7 {[%clk 0:01:20]} 47. Kc4 {[%clk 0:00:34]}  Rd1 {[%clk 0:01:20]} 48. Kc5 {[%clk 0:00:33]}  Rc1+ {[%clk 0:01:19]} 49. Kd5 {[%clk 0:00:34]}  Rd1+ {[%clk 0:01:19]} 50. Kc6 {[%clk 0:00:35]}  h6 {[%clk 0:01:17]} 51. gxh6 {[%clk 0:00:34]}  gxh6 {[%clk 0:01:18]} 52. Rh8 {[%clk 0:00:34]}  Rd4 {[%clk 0:01:14]} 53. d7 {[%clk 0:00:33]}  Ke7 {[%clk 0:01:10]} 54. Re8+ {[%clk 0:00:33]} 1-0


[Site "https://www.chess.com"]

[Event "Titled Tuesday Blitz May 16 Late 2023"]
[White "Rasulov, Vugar"]
[Black "Karas, Marek"]
[WhiteFideId "13402390"]
[BlackFideId "14928558"]
[WhiteElo "2509"]
[BlackElo "2233"]
[Result "1-0"]
[Round "01"]
[TimeControl "180+2"]
[Date "2023.05.16"]
[WhiteClock "0:01:45"]
[BlackClock "0:00:00"]

1. Nf3 {[%clk 0:03:00]}  Nf6 {[%clk 0:02:59]} 2. c4 {[%clk 0:03:00]}  e6 {[%clk 0:02:58]} 3. Nc3 {[%clk 0:03:00]}  d5 {[%clk 0:02:57]} 4. e3 {[%clk 0:03:00]}  b6 {[%clk 0:02:54]} 5. cxd5 {[%clk 0:02:55]}  Nxd5 {[%clk 0:02:48]} 6. d4 {[%clk 0:02:54]}  Be7 {[%clk 0:02:44]} 7. Bb5+ {[%clk 0:02:54]}  c6 {[%clk 0:02:41]} 8. Bd3 {[%clk 0:02:54]}  O-O {[%clk 0:02:39]} 9. O-O {[%clk 0:02:53]}  Bb7 {[%clk 0:02:39]} 10. Nxd5 {[%clk 0:02:49]}  cxd5 {[%clk 0:02:31]} 11. Bd2 {[%clk 0:02:48]}  Nc6 {[%clk 0:02:30]} 12. Rc1 {[%clk 0:02:48]}  Rc8 {[%clk 0:02:29]} 13. Qa4 {[%clk 0:02:47]}  a5 {[%clk 0:02:12]} 14. a3 {[%clk 0:02:45]}  Nb8 {[%clk 0:02:07]} 15. Rxc8 {[%clk 0:02:42]}  Bxc8 {[%clk 0:01:54]} 16. Rc1 {[%clk 0:02:43]}  Bd7 {[%clk 0:01:54]} 17. Qc2 {[%clk 0:02:43]}  Bd6 {[%clk 0:01:50]} 18. Bxh7+ {[%clk 0:02:42]}  Kh8 {[%clk 0:01:49]} 19. Bd3 {[%clk 0:02:43]}  Qf6 {[%clk 0:01:38]} 20. Ne5 {[%clk 0:02:34]}  Bxe5 {[%clk 0:01:29]} 21. dxe5 {[%clk 0:02:35]}  Qxe5 {[%clk 0:01:30]} 22. Bc3 {[%clk 0:02:35]}  Qd6 {[%clk 0:01:23]} 23. Qe2 {[%clk 0:02:33]}  f5 {[%clk 0:01:05]} 24. Qh5+ {[%clk 0:02:32]}  Kg8 {[%clk 0:01:05]} 25. Qg5 {[%clk 0:02:33]}  Rf7 {[%clk 0:01:01]} 26. h4 {[%clk 0:02:32]}  Nc6 {[%clk 0:00:50]} 27. h5 {[%clk 0:02:32]}  Qe7 {[%clk 0:00:50]} 28. Qg6 {[%clk 0:02:27]}  Kf8 {[%clk 0:00:38]} 29. h6 {[%clk 0:02:25]}  gxh6 {[%clk 0:00:38]} 30. Qxh6+ {[%clk 0:02:23]}  Ke8 {[%clk 0:00:39]} 31. Bb5 {[%clk 0:02:22]}  Nb8 {[%clk 0:00:32]} 32. a4 {[%clk 0:02:11]}  Bxb5 {[%clk 0:00:24]} 33. axb5 {[%clk 0:02:12]}  Nd7 {[%clk 0:00:23]} 34. Bd4 {[%clk 0:02:11]}  Nc5 {[%clk 0:00:19]} 35. Qf4 {[%clk 0:02:05]}  Qc7 {[%clk 0:00:17]} 36. Be5 {[%clk 0:01:56]}  Qe7 {[%clk 0:00:15]} 37. Bd6 {[%clk 0:01:50]}  Qf6 {[%clk 0:00:15]} 38. Bxc5 {[%clk 0:01:49]}  Qxb2 {[%clk 0:00:03]} 39. Qb8+ {[%clk 0:01:49]}  Kd7 {[%clk 0:00:03]} 40. Qd6+ {[%clk 0:01:49]}  Kc8 {[%clk 0:00:02]} 41. Qxe6+ {[%clk 0:01:48]}  Rd7 {[%clk 0:00:02]} 42. Qe8+ {[%clk 0:01:45]}  Rd8 {[%clk 0:00:02]} 43. Qc6+ {[%clk 0:01:45]}  Kb8 {[%clk 0:00:00]} 44. Bxb6 {[%clk 0:01:45]} 1-0


[Site "https://www.chess.com"]

[Event "Titled Tuesday Blitz May 16 Late 2023"]
[White "Sjugirov, Sanan"]
[Black "Grinev, Valeriy"]
[WhiteFideId "4189302"]
[BlackFideId "14117517"]
[WhiteElo "2569"]
[BlackElo "2366"]
[Result "0-1"]
[Round "01"]
[TimeControl "180+2"]
[Date "2023.05.16"]
[WhiteClock "0:00:00"]
[BlackClock "0:00:48"]

1. e4 {[%clk 0:03:00]}  c5 {[%clk 0:02:59]} 2. Nf3 {[%clk 0:02:59]}  e6 {[%clk 0:02:59]} 3. d3 {[%clk 0:02:59]}  d5 {[%clk 0:02:58]} 4. Qe2 {[%clk 0:02:58]}  Nf6 {[%clk 0:02:57]} 5. g3 {[%clk 0:02:58]}  Nc6 {[%clk 0:02:57]} 6. Bg2 {[%clk 0:02:56]}  Be7 {[%clk 0:02:58]} 7. O-O {[%clk 0:02:56]}  O-O {[%clk 0:02:58]} 8. e5 {[%clk 0:02:56]}  Ne8 {[%clk 0:02:59]} 9. c4 {[%clk 0:02:56]}  Nc7 {[%clk 0:02:57]} 10. Nc3 {[%clk 0:02:56]}  Rb8 {[%clk 0:02:56]} 11. Rd1 {[%clk 0:02:48]}  b5 {[%clk 0:02:53]} 12. b3 {[%clk 0:02:48]}  bxc4 {[%clk 0:02:39]} 13. dxc4 {[%clk 0:02:47]}  Ba6 {[%clk 0:02:29]} 14. Qe1 {[%clk 0:02:40]}  Nb4 {[%clk 0:02:26]} 15. Rb1 {[%clk 0:02:27]}  d4 {[%clk 0:02:24]} 16. Ne4 {[%clk 0:02:24]}  Nxa2 {[%clk 0:02:24]} 17. Bg5 {[%clk 0:02:13]}  Bb7 {[%clk 0:02:17]} 18. Bxe7 {[%clk 0:02:01]}  Qxe7 {[%clk 0:02:18]} 19. Ra1 {[%clk 0:00:45]}  Bxe4 {[%clk 0:02:11]} 20. Rxa2 {[%clk 0:00:45]}  Bxf3 {[%clk 0:02:07]} 21. Bxf3 {[%clk 0:00:46]}  Rxb3 {[%clk 0:02:07]} 22. Be4 {[%clk 0:00:43]}  a6 {[%clk 0:01:59]} 23. Bc2 {[%clk 0:00:39]}  Rb4 {[%clk 0:01:57]} 24. Qe4 {[%clk 0:00:38]}  g6 {[%clk 0:01:57]} 25. Bd3 {[%clk 0:00:37]}  Rfb8 {[%clk 0:01:54]} 26. h4 {[%clk 0:00:38]}  Kg7 {[%clk 0:01:50]} 27. Kg2 {[%clk 0:00:37]}  Rb2 {[%clk 0:01:48]} 28. Raa1 {[%clk 0:00:33]}  R8b3 {[%clk 0:01:42]} 29. Qf4 {[%clk 0:00:23]}  h5 {[%clk 0:01:32]} 30. Be4 {[%clk 0:00:22]}  Re3 {[%clk 0:01:26]} 31. Rdb1 {[%clk 0:00:16]}  Ree2 {[%clk 0:01:23]} 32. Rxb2 {[%clk 0:00:17]}  Rxb2 {[%clk 0:01:23]} 33. Bf3 {[%clk 0:00:16]}  d3 {[%clk 0:01:18]} 34. Rd1 {[%clk 0:00:14]}  Qd8 {[%clk 0:01:14]} 35. Qe3 {[%clk 0:00:12]}  Qd4 {[%clk 0:00:57]} 36. Qxd4 {[%clk 0:00:12]}  cxd4 {[%clk 0:00:57]} 37. Rxd3 {[%clk 0:00:12]}  a5 {[%clk 0:00:55]} 38. Rxd4 {[%clk 0:00:12]}  Na6 {[%clk 0:00:53]} 39. Rd7 {[%clk 0:00:06]}  a4 {[%clk 0:00:51]} 40. Ra7 {[%clk 0:00:05]}  Nc5 {[%clk 0:00:52]} 41. Bc6 {[%clk 0:00:05]}  Nd3 {[%clk 0:00:48]} 42. Bxa4 {[%clk 0:00:02]}  Rxf2+ {[%clk 0:00:47]} 43. Kg1 {[%clk 0:00:00]}  Ra2 {[%clk 0:00:48]} 0-1


[Site "https://www.chess.com"]

[Event "Titled Tuesday Blitz May 16 Late 2023"]
[White "Bortnyk, Mykola"]
[Black "Ladan, Nicholas"]
[WhiteFideId "14120836"]
[BlackFideId "30918855"]
[WhiteElo "2582"]
[BlackElo "2167"]
[Result "1-0"]
[Round "01"]
[TimeControl "180+2"]
[Date "2023.05.16"]
[WhiteClock "0:00:37"]
[BlackClock "0:00:00"]

1. d4 {[%clk 0:02:59]}  d5 {[%clk 0:03:00]} 2. c4 {[%clk 0:02:57]}  c6 {[%clk 0:02:59]} 3. Nc3 {[%clk 0:02:56]}  Nf6 {[%clk 0:02:59]} 4. Nf3 {[%clk 0:02:56]}  e6 {[%clk 0:02:59]} 5. Bg5 {[%clk 0:02:54]}  Nbd7 {[%clk 0:03:00]} 6. e3 {[%clk 0:02:53]}  Qa5 {[%clk 0:03:01]} 7. Nd2 {[%clk 0:02:45]}  Ne4 {[%clk 0:02:59]} 8. Ndxe4 {[%clk 0:02:44]}  dxe4 {[%clk 0:02:59]} 9. Bf4 {[%clk 0:02:43]}  e5 {[%clk 0:02:40]} 10. Bg3 {[%clk 0:02:38]}  Bb4 {[%clk 0:02:31]} 11. Qc2 {[%clk 0:02:31]}  O-O {[%clk 0:02:29]} 12. Be2 {[%clk 0:02:13]}  exd4 {[%clk 0:02:16]} 13. exd4 {[%clk 0:02:12]}  Nf6 {[%clk 0:02:04]} 14. O-O {[%clk 0:02:04]}  Bxc3 {[%clk 0:02:00]} 15. Qxc3 {[%clk 0:02:03]}  Qxc3 {[%clk 0:01:46]} 16. bxc3 {[%clk 0:02:03]}  Bg4 {[%clk 0:01:46]} 17. f3 {[%clk 0:01:55]}  exf3 {[%clk 0:01:45]} 18. gxf3 {[%clk 0:01:56]}  Rfe8 {[%clk 0:01:38]} 19. Rfe1 {[%clk 0:01:51]}  Bf5 {[%clk 0:01:33]} 20. Kf2 {[%clk 0:01:44]}  Re6 {[%clk 0:01:03]} 21. Bf1 {[%clk 0:01:28]}  Rae8 {[%clk 0:00:57]} 22. Rxe6 {[%clk 0:01:23]}  Rxe6 {[%clk 0:00:58]} 23. a4 {[%clk 0:01:19]}  Nh5 {[%clk 0:00:53]} 24. Bb8 {[%clk 0:01:16]}  a6 {[%clk 0:00:51]} 25. Ra2 {[%clk 0:01:14]}  Re8 {[%clk 0:00:50]} 26. Be5 {[%clk 0:01:06]}  f6 {[%clk 0:00:47]} 27. Bd6 {[%clk 0:01:05]}  g5 {[%clk 0:00:37]} 28. Rb2 {[%clk 0:01:03]}  Bc8 {[%clk 0:00:37]} 29. c5 {[%clk 0:01:00]}  Kg7 {[%clk 0:00:28]} 30. a5 {[%clk 0:00:57]}  Nf4 {[%clk 0:00:28]} 31. Bxf4 {[%clk 0:00:56]}  gxf4 {[%clk 0:00:29]} 32. Re2 {[%clk 0:00:53]}  Rxe2+ {[%clk 0:00:28]} 33. Kxe2 {[%clk 0:00:51]}  Be6 {[%clk 0:00:27]} 34. Kd3 {[%clk 0:00:50]}  Bf5+ {[%clk 0:00:24]} 35. Kd2 {[%clk 0:00:47]}  Kf7 {[%clk 0:00:22]} 36. Bd3 {[%clk 0:00:42]}  Ke6 {[%clk 0:00:19]} 37. c4 {[%clk 0:00:40]}  Bxd3 {[%clk 0:00:14]} 38. Kxd3 {[%clk 0:00:41]}  h5 {[%clk 0:00:10]} 39. Ke4 {[%clk 0:00:40]}  f5+ {[%clk 0:00:02]} 40. Kxf4 {[%clk 0:00:40]}  Kf6 {[%clk 0:00:00]} 41. h4 {[%clk 0:00:37]} 1-0


[Site "https://www.chess.com"]

[Event "Titled Tuesday Blitz May 16 Late 2023"]
[White "Kramnik, Vladimir"]
[Black "Ljukin, Sergei"]
[WhiteFideId "4101588"]
[BlackFideId "14102200"]
[WhiteElo "2703"]
[BlackElo "2312"]
[Result "1-0"]
[Round "01"]
[TimeControl "180+2"]
[Date "2023.05.16"]
[WhiteClock "0:00:12"]
[BlackClock "0:00:00"]

1. e4 {[%clk 0:03:00]}  e6 {[%clk 0:02:59]} 2. d4 {[%clk 0:02:59]}  d5 {[%clk 0:02:59]} 3. exd5 {[%clk 0:03:00]}  exd5 {[%clk 0:02:59]} 4. Nf3 {[%clk 0:03:00]}  Nf6 {[%clk 0:03:00]} 5. Bd3 {[%clk 0:03:00]}  c5 {[%clk 0:03:00]} 6. O-O {[%clk 0:02:59]}  Nc6 {[%clk 0:03:00]} 7. Re1+ {[%clk 0:02:58]}  Be7 {[%clk 0:02:59]} 8. dxc5 {[%clk 0:02:57]}  O-O {[%clk 0:03:00]} 9. h3 {[%clk 0:02:48]}  Bxc5 {[%clk 0:02:59]} 10. Nc3 {[%clk 0:02:48]}  d4 {[%clk 0:02:52]} 11. Ne4 {[%clk 0:02:44]}  Nxe4 {[%clk 0:02:52]} 12. Bxe4 {[%clk 0:02:44]}  h6 {[%clk 0:02:25]} 13. a3 {[%clk 0:02:44]}  a5 {[%clk 0:02:15]} 14. Qd3 {[%clk 0:02:41]}  Qf6 {[%clk 0:02:12]} 15. Bd2 {[%clk 0:02:37]}  Rd8 {[%clk 0:02:04]} 16. Rad1 {[%clk 0:02:20]}  b6 {[%clk 0:01:54]} 17. b4 {[%clk 0:02:00]}  axb4 {[%clk 0:00:49]} 18. axb4 {[%clk 0:01:59]}  Bf8 {[%clk 0:00:37]} 19. b5 {[%clk 0:01:53]}  Ra3 {[%clk 0:00:36]} 20. Qc4 {[%clk 0:01:37]}  Na5 {[%clk 0:00:36]} 21. Bxa5 {[%clk 0:01:27]}  Rxa5 {[%clk 0:00:35]} 22. Rxd4 {[%clk 0:01:16]}  Rxd4 {[%clk 0:00:28]} 23. Nxd4 {[%clk 0:01:15]}  Bc5 {[%clk 0:00:24]} 24. c3 {[%clk 0:01:06]}  Be6 {[%clk 0:00:21]} 25. Bd5 {[%clk 0:01:05]}  Bxd5 {[%clk 0:00:19]} 26. Qxd5 {[%clk 0:01:03]}  g6 {[%clk 0:00:16]} 27. Qc4 {[%clk 0:00:35]}  Kg7 {[%clk 0:00:15]} 28. g3 {[%clk 0:00:27]}  Ra3 {[%clk 0:00:13]} 29. Re3 {[%clk 0:00:21]}  Ra1+ {[%clk 0:00:12]} 30. Kg2 {[%clk 0:00:21]}  Rb1 {[%clk 0:00:12]} 31. Rf3 {[%clk 0:00:17]}  Qe7 {[%clk 0:00:12]} 32. Qd5 {[%clk 0:00:17]}  Rb2 {[%clk 0:00:11]} 33. h4 {[%clk 0:00:14]}  h5 {[%clk 0:00:11]} 34. Nc6 {[%clk 0:00:13]}  Qe6 {[%clk 0:00:11]} 35. Qxe6 {[%clk 0:00:13]}  fxe6 {[%clk 0:00:11]} 36. Nd8 {[%clk 0:00:13]}  Rxb5 {[%clk 0:00:09]} 37. Nxe6+ {[%clk 0:00:13]}  Kh6 {[%clk 0:00:09]} 38. Rf7 {[%clk 0:00:12]}  Rb2 {[%clk 0:00:00]} 39. Ng5 {[%clk 0:00:12]} 1-0


[Site "https://www.chess.com"]

[Event "Titled Tuesday Blitz May 16 Late 2023"]
[White "Xiong, Jeffery"]
[Black "KorolDimitriy75"]
[WhiteFideId "2047640"]
[WhiteElo "2726"]
[BlackElo "2474"]
[Result "1-0"]
[Round "01"]
[TimeControl "180+2"]
[Date "2023.05.16"]
[WhiteClock "0:02:14"]
[BlackClock "0:00:00"]

1. e4 {[%clk 0:03:00]}  c5 {[%clk 0:02:59]} 2. Nf3 {[%clk 0:03:01]}  d6 {[%clk 0:03:00]} 3. Nc3 {[%clk 0:03:01]}  Nf6 {[%clk 0:02:59]} 4. d4 {[%clk 0:03:02]}  cxd4 {[%clk 0:02:59]} 5. Qxd4 {[%clk 0:03:02]}  a6 {[%clk 0:02:58]} 6. Nd5 {[%clk 0:03:02]}  Nc6 {[%clk 0:02:44]} 7. Nxf6+ {[%clk 0:03:02]}  gxf6 {[%clk 0:02:43]} 8. Qe3 {[%clk 0:02:55]}  Bg7 {[%clk 0:02:39]} 9. Bd3 {[%clk 0:02:54]}  f5 {[%clk 0:02:31]} 10. exf5 {[%clk 0:02:54]}  Bxf5 {[%clk 0:02:26]} 11. O-O {[%clk 0:02:52]}  Bg6 {[%clk 0:02:13]} 12. Nh4 {[%clk 0:02:50]}  O-O {[%clk 0:02:07]} 13. Nf5 {[%clk 0:02:49]}  Bf6 {[%clk 0:01:59]} 14. Qg3 {[%clk 0:02:49]}  Kh8 {[%clk 0:01:56]} 15. Bg5 {[%clk 0:02:33]}  Bxg5 {[%clk 0:01:38]} 16. Qxg5 {[%clk 0:02:34]}  e6 {[%clk 0:01:38]} 17. Qxd8 {[%clk 0:02:34]}  Rfxd8 {[%clk 0:01:35]} 18. Ne3 {[%clk 0:02:35]}  Rac8 {[%clk 0:01:34]} 19. Bxg6 {[%clk 0:02:34]}  hxg6 {[%clk 0:01:33]} 20. c3 {[%clk 0:02:35]}  d5 {[%clk 0:01:33]} 21. Rad1 {[%clk 0:02:34]}  d4 {[%clk 0:01:29]} 22. cxd4 {[%clk 0:02:34]}  Nxd4 {[%clk 0:01:29]} 23. Rfe1 {[%clk 0:02:33]}  Kg7 {[%clk 0:01:23]} 24. Kf1 {[%clk 0:02:33]}  Kf8 {[%clk 0:01:17]} 25. Rd2 {[%clk 0:02:32]}  Nc6 {[%clk 0:00:58]} 26. Red1 {[%clk 0:02:32]}  Ke7 {[%clk 0:00:57]} 27. Rxd8 {[%clk 0:02:31]}  Rxd8 {[%clk 0:00:58]} 28. Rxd8 {[%clk 0:02:31]}  Kxd8 {[%clk 0:00:54]} 29. h4 {[%clk 0:02:32]}  Ke7 {[%clk 0:00:50]} 30. Ke2 {[%clk 0:02:29]}  f5 {[%clk 0:00:45]} 31. Nc4 {[%clk 0:02:24]}  e5 {[%clk 0:00:41]} 32. f3 {[%clk 0:02:24]}  Ke6 {[%clk 0:00:40]} 33. g4 {[%clk 0:02:24]}  Nd4+ {[%clk 0:00:28]} 34. Ke3 {[%clk 0:02:24]}  Nc2+ {[%clk 0:00:25]} 35. Kf2 {[%clk 0:02:24]}  Nb4 {[%clk 0:00:18]} 36. h5 {[%clk 0:02:23]}  fxg4 {[%clk 0:00:15]} 37. h6 {[%clk 0:02:20]}  Kf6 {[%clk 0:00:08]} 38. fxg4 {[%clk 0:02:21]}  g5 {[%clk 0:00:08]} 39. Nxe5 {[%clk 0:02:17]}  Nxa2 {[%clk 0:00:06]} 40. Ke3 {[%clk 0:02:18]}  Nb4 {[%clk 0:00:05]} 41. Kd4 {[%clk 0:02:18]}  Nc2+ {[%clk 0:00:05]} 42. Kc5 {[%clk 0:02:18]}  Ne3 {[%clk 0:00:04]} 43. Kb6 {[%clk 0:02:18]}  Nd5+ {[%clk 0:00:03]} 44. Kxb7 {[%clk 0:02:16]}  Ne7 {[%clk 0:00:02]} 45. h7 {[%clk 0:02:14]}  Kg7 {[%clk 0:00:00]} 46. Kxa6 {[%clk 0:02:14]} 1-0


[Site "https://www.chess.com"]